bitfinex/quotes_ETHUSD_20260304
["timestamp","ask_amount","ask_price","bid_price","bid_amount"]
[1772646982237,0.48784167,2148.5,2147.6,1.16407113]
[1772646982238,0.43358683,2148.5,2147.6,1.16407113]
[1772646982442,0.48784167,2148.3,2147.5,0.48192453]
[1772646983167,0.48784167,2148.3,2147.5,1.64606384]
[1772646983373,1.65160668,2148.2,2147.5,1.64606384]
[1772646984266,0.48784167,2148.1,2147.5,1.64606384]
[1772646985169,1.16376501,2148.2,2147.5,1.64606384]
[1772646985555,1.65160668,2148.2,2147.5,1.64606384]
[1772646987582,0.47554167,2148.1,2147.7,0.001]
[1772646988043,0.47554167,2148.1,2147.5,0.001]
[1772646988241,0.47554167,2148.1,2147.5,1.63666236]
[1772646988479,0.47554167,2148.5,2147.5,1.63666236]
[1772646988660,0.47554167,2148.3,2147.5,1.63666236]
[1772646989057,0.47554167,2148.3,2147.6,0.47152533]
[1772646989676,1.16376501,2148.2,2147.6,1.6355709]
[1772646989874,1.63930668,2148.2,2147.6,1.6355709]
[1772646990171,1.63930668,2148.2,2147.6,0.47152533]
[1772646990377,0.47554167,2148.1,2147.5,0.001]
[1772646990673,0.47554167,2148.1,2147.5,1.16514345]
[1772646991159,0.47554167,2148.4,2147.6,0.47152533]
[1772646991360,1.16369757,2148.4,2147.6,0.47152533]
[1772646991563,1.63923924,2148.4,2147.6,0.47152533]
[1772646991756,1.63923924,2148.4,2147.7,1.16403594]
[1772646991944,0.47554167,2148.3,2147.7,1.16403594]
[1772646992856,0.47554167,2148.3,2147.7,1.63556127]
[1772646993750,0.47554167,2148.3,2147.9,0.6]
[1772646994364,1.63930017,2148.3,2147.9,0.6]
[1772646994559,0.47554167,2148.3,2147.9,1.7639227]
[1772646995166,1.16354835,2148.6,2148.0,0.47152533]
[1772646995357,0.47554167,2148.6,2148.0,0.47152533]
[1772646995962,0.47554167,2148.4,2147.9,0.6]
[1772646996488,1.16371084,2148.3,2147.9,0.6]
[1772646996666,1.63925251,2148.3,2147.9,0.6]
[1772646996861,0.50379306,2147.9,2147.4,0.47152533]
[1772646997090,0.50379306,2147.9,2147.5,1.63666807]
[1772646997257,0.50379306,2147.9,2147.6,0.47152533]
[1772646998160,1.63922987,2148.4,2147.6,0.47152533]
[1772646998381,3.20659426,2148.3,2147.6,0.47152533]
[1772646998576,1.63922987,2148.4,2147.8,0.47152533]
[1772646998785,3.20661828,2148.3,2147.8,0.47152533]
[1772646999074,1.63922987,2148.4,2147.8,0.47152533]
[1772646999384,3.20664138,2148.3,2147.8,0.47152533]
[1772646999589,1.63922987,2148.4,2147.8,0.47152533]
[1772646999887,3.20650124,2148.3,2147.8,0.47152533]
[1772647000103,0.47554167,2148.4,2147.8,0.47152533]
[1772647000268,0.47554167,2148.6,2147.9,0.47152533]
[1772647000588,3.20723619,2148.5,2148.0,1.16387337]
[1772647000783,1.63910749,2148.6,2148.0,1.16387337]
[1772647000971,3.20731206,2148.5,2148.0,1.16387337]
[1772647001336,0.47554167,2148.6,2148.0,1.6353987]
[1772647001586,0.002,2148.1,2148.0,1.6353987]
[1772647001801,0.002,2148.1,2148.0,0.47152533]
[1772647002115,0.002,2148.1,2147.8,2.24794228]
[1772647002263,0.002,2148.1,2147.8,1.55552533]
[1772647002599,0.002,2148.1,2147.8,1.63650071]
[1772647003574,0.90932308,2148.0,2147.4,1.16419844]
[1772647003775,0.002,2148.1,2147.5,0.47152533]
[1772647005076,0.002,2148.1,2147.6,1.63561547]
[1772647005281,0.002,2148.1,2147.8,0.47152533]
[1772647006491,1.16551651,2148.7,2147.8,0.47152533]
[1772647006672,3.21265455,2148.6,2147.8,0.47152533]
[1772647006995,0.002,2148.7,2148.0,0.47152533]
[1772647007899,0.002,2148.7,2148.2,0.47152533]
[1772647008703,0.91249367,2148.6,2147.9,1.16392755]
[1772647008873,0.47827787,2148.5,2148.0,1.085]
[1772647009070,0.47827787,2148.5,2148.0,2.24882514]
[1772647009304,1.64380588,2148.7,2148.0,2.71078768]
[1772647009498,3.21407688,2148.6,2148.0,2.71078768]
[1772647009685,1.64380588,2148.7,2148.0,2.71078768]
[1772647009878,3.69221844,2148.6,2148.0,2.71078768]
[1772647010078,0.002,2148.7,2148.1,0.46196254]
[1772647010296,0.43434388,2148.6,2148.1,0.46196254]
[1772647010491,0.002,2148.7,2148.1,0.46196254]
[1772647010691,0.43430652,2148.6,2148.1,0.46196254]
[1772647010895,0.47827787,2148.6,2148.1,1.086]
[1772647011086,1.64187471,2148.6,2148.0,1.16382514]
[1772647011284,1.16359684,2148.6,2148.1,1.086]
[1772647011596,0.91231742,2148.5,2148.0,1.16382514]
[1772647011791,0.47827787,2148.5,2148.0,1.16382514]
[1772647012800,0.48027787,2148.7,2148.1,0.50831936]
[1772647012993,3.21346135,2148.6,2148.1,0.50831936]
[1772647013302,1.16359169,2148.6,2148.1,1.67211052]
[1772647013606,1.64380198,2148.7,2148.1,1.67211052]
[1772647013818,3.21319074,2148.6,2148.2,0.46196254]
[1772647014003,0.002,2148.7,2148.2,0.46196254]
[1772647014912,0.002,2148.7,2148.3,0.0463525]
[1772647015217,0.002,2148.7,2148.4,2.71261921]
[1772647015380,0.002,2149.1,2148.5,0.46196254]
[1772647015579,0.4341031,2149.0,2148.5,0.46196254]
[1772647015889,0.002,2148.6,2148.5,0.46196254]
[1772647016203,0.002,2149.1,2148.5,0.46196254]
[1772647016378,0.002,2149.1,2148.6,1.54896254]
[1772647016774,0.002,2149.1,2148.7,0.46196254]
[1772647017209,0.002,2149.1,2148.8,1.16344005]
[1772647017714,0.48027787,2149.1,2148.6,2.25054173]
[1772647018091,0.002,2149.1,2148.6,1.62550427]
[1772647018292,0.002,2149.1,2148.7,1.088]
[1772647018793,0.48027787,2149.1,2148.3,1.62563723]
[1772647018989,0.48027787,2149.1,2148.4,0.46196254]
[1772647019308,0.002,2149.1,2148.6,0.46196254]
[1772647019499,0.002,2149.1,2148.7,1.54996254]
[1772647019812,0.002,2149.1,2148.5,1.16360251]
[1772647020122,0.002,2149.1,2148.7,1.088]
[1772647020502,0.002,2149.1,2148.5,1.62556505]
[1772647020703,0.48027787,2149.1,2148.6,1.089]
[1772647020904,0.002,2149.1,2148.7,0.46196254]
[1772647021100,0.002,2149.2,2148.7,0.46196254]
[1772647021306,1.64125509,2149.7,2148.9,0.46196254]
[1772647021502,0.4335952,2149.6,2148.9,0.46196254]
[1772647021706,1.64125509,2149.7,2148.9,0.46196254]
[1772647021909,0.47827787,2149.5,2148.3,0.46196254]
[1772647022121,0.47827787,2149.3,2148.7,1.089]
[1772647022426,0.47827787,2149.6,2148.8,0.46196254]
[1772647022727,1.16297722,2149.7,2148.8,0.46196254]
[1772647022728,0.47827787,2149.4,2148.8,0.46196254]
[1772647022895,0.47827787,2149.4,2148.8,1.09]
[1772647023090,0.47827787,2149.4,2148.5,0.46196254]
[1772647023293,1.64141448,2149.4,2148.7,1.62545674]
[1772647025790,0.47827787,2149.3,2148.7,1.62545674]
[1772647026621,0.47827787,2149.3,2148.6,1.09]
[1772647026819,0.47827787,2149.3,2148.4,1.091]
[1772647027330,1.16322352,2149.2,2148.5,1.16360251]
[1772647027497,0.47827787,2149.1,2148.9,0.001]
[1772647028996,0.47827787,2149.1,2148.6,0.001]
[1772647029322,1.64171792,2148.8,2148.6,0.001]
[1772647030806,0.47827787,2148.8,2148.6,0.001]
[1772647031002,1.16342733,2148.9,2148.6,0.001]
[1772647031202,0.47827787,2148.8,2148.6,0.001]
[1772647031402,4.84843739,2148.7,2148.6,0.001]
[1772647032412,0.47827787,2148.6,2148.4,0.001]
[1772647032604,0.91161989,2148.5,2148.4,0.001]
[1772647032926,0.47827787,2148.4,2148.2,0.001]
[1772647033123,0.47827787,2148.6,2148.2,0.002]
[1772647033317,1.16365667,2148.4,2148.2,0.002]
[1772647035218,1.64193454,2148.4,2148.2,0.002]
[1772647036826,1.64193454,2148.4,2148.0,0.001]
[1772647036827,0.47827787,2148.3,2148.0,0.001]
[1772647037032,0.47827787,2148.1,2148.0,0.001]
[1772647037233,0.91204201,2148.1,2148.0,0.001]
[1772647037409,0.91204201,2148.1,2147.2,0.46196254]
[1772647037410,0.47827787,2148.0,2147.2,0.46196254]
[1772647037604,0.47827787,2148.0,2147.0,4.09763617]
[1772647037811,0.47827787,2147.8,2147.0,0.46196254]
[1772647038226,0.47827787,2147.8,2147.0,1.62637002]
[1772647038430,1.16381918,2148.1,2147.1,0.47900522]
[1772647038729,0.92844301,2148.0,2147.1,0.47900522]
[1772647038918,0.92844301,2147.9,2147.1,0.47900522]
[1772647039123,0.49540922,2147.9,2146.9,0.47900522]
[1772647039324,0.49540922,2147.5,2146.6,1.092]
[1772647039536,1.16409014,2147.6,2146.6,1.092]
[1772647039537,0.49540922,2147.3,2146.6,1.092]
[1772647039725,0.49540922,2147.1,2146.3,0.47900522]
[1772647040041,0.49540922,2147.1,2145.5,4.66081246]
[1772647040042,0.49540922,2147.1,2145.7,4.660435]
[1772647040210,0.49540922,2146.9,2145.8,0.47900522]
[1772647040533,0.49540922,2147.1,2146.0,0.47900522]
[1772647040731,0.92712324,2147.0,2146.0,0.47900522]
[1772647040942,1.181,2147.2,2145.7,4.660435]
[1772647040943,0.49540922,2146.9,2145.8,0.47900522]
[1772647041309,1.16452394,2146.8,2145.9,1.16501234]
[1772647041509,1.16452394,2146.8,2146.0,0.47900522]
[1772647041739,1.65992109,2146.9,2146.2,0.47900522]
[1772647041934,1.16451187,2146.9,2146.2,0.47900522]
[1772647042832,1.16451187,2146.9,2146.8,0.001]
[1772647043035,4.65754054,2147.1,2146.8,0.001]
[1772647045010,5.15294976,2147.1,2146.8,0.001]
[1772647045207,0.49000877,2147.0,2146.8,0.001]
[1772647045418,1.1644697,2146.9,2146.8,0.001]
[1772647045617,1.16445726,2147.0,2146.8,0.001]
[1772647045818,1.16425278,2147.3,2146.8,0.001]
[1772647046720,1.65426155,2147.3,2146.8,0.001]
[1772647047539,0.49000877,2147.2,2146.2,0.47823357]
[1772647047743,0.49000877,2147.2,2145.9,1.64322091]
[1772647048038,0.49000877,2147.1,2145.9,2.73422091]
[1772647048222,0.49000877,2147.1,2146.0,0.47823357]
[1772647049308,1.184,2147.2,2146.0,0.47823357]
[1772647049515,1.65426155,2147.3,2146.4,0.47823357]
[1772647050113,0.49000877,2147.2,2146.1,3.06694932]
[1772647050315,0.49000877,2147.2,2146.2,1.56923357]
[1772647050740,0.49000877,2147.2,2146.3,0.47823357]
[1772647051526,1.16436123,2147.1,2146.4,1.16474096]
[1772647051834,0.49000877,2147.0,2146.4,1.16474096]
[1772647052345,0.49000877,2147.0,2146.3,2.73298714]
[1772647052529,0.49000877,2147.0,2146.3,1.56823357]
[1772647052841,0.49000877,2147.0,2146.0,1.64315633]
[1772647053142,0.49000877,2147.0,2146.1,0.47823357]
[1772647053349,1.65437,2147.1,2146.1,0.47823357]
[1772647053522,1.16425278,2147.3,2146.3,1.16479522]
[1772647053868,0.49000877,2147.2,2146.4,0.47823357]
[1772647054046,0.49000877,2147.2,2146.2,1.16480829]
[1772647054212,0.49000877,2147.2,2146.1,1.16486414]
[1772647054413,0.49000877,2147.2,2146.3,0.001]
[1772647055844,0.49000877,2147.0,2146.3,0.001]
[1772647056925,0.49000877,2147.0,2146.0,0.001]
[1772647057846,0.49000877,2146.8,2146.0,0.001]
[1772647058220,0.49000877,2146.8,2146.0,0.47923357]
[1772647060146,1.16457818,2146.7,2146.1,1.16490377]
[1772647060450,1.65458695,2146.7,2146.1,1.16490377]
[1772647060647,1.65458695,2146.7,2146.0,1.64418697]
[1772647061221,1.65458695,2146.7,2146.0,1.64418451]
[1772647062127,1.16457818,2146.7,2146.2,0.47823357]
[1772647063227,1.16455968,2146.8,2146.2,0.47823357]
[1772647064162,1.16455968,2146.8,2146.2,1.64306547]
[1772647065582,1.16441546,2147.0,2146.3,0.47823357]
[1772647065866,0.49000877,2147.1,2146.4,1.088]
[1772647066074,0.92268243,2147.0,2146.4,1.088]
[1772647066259,1.1644697,2146.9,2146.4,1.16472464]
[1772647067043,0.49000877,2147.1,2146.5,0.47823357]
[1772647067233,3.20849115,2147.0,2146.5,0.47823357]
[1772647067543,1.164307,2147.2,2146.5,0.47823357]
[1772647067741,0.002,2147.0,2146.5,0.47823357]
[1772647068142,0.002,2147.0,2146.6,1.16463244]
[1772647068348,0.002,2147.0,2146.6,1.64286601]
[1772647069030,0.43424648,2146.9,2146.6,1.64286601]
[1772647069226,0.002,2147.0,2146.6,1.64286601]
[1772647069427,0.43424796,2146.9,2146.6,1.64286601]
[1772647069645,0.002,2147.0,2146.6,0.47823357]
[1772647069837,0.43433191,2146.9,2146.6,0.47823357]
[1772647070128,0.002,2147.0,2146.6,0.47823357]
[1772647070330,1.59877936,2146.9,2146.6,0.47823357]
[1772647070533,3.21367358,2146.8,2146.4,0.001]
[1772647070843,1.16448103,2146.9,2146.4,1.64857018]
[1772647071040,3.21360093,2146.8,2146.4,1.64857018]
[1772647071233,1.16645697,2147.0,2146.5,0.48285447]
[1772647071432,1.16645697,2147.0,2146.4,1.16571571]
[1772647071433,3.21347757,2146.9,2146.4,1.16573261]
[1772647071732,0.002,2147.2,2146.5,0.48285447]
[1772647071928,1.16403594,2147.7,2146.6,2.50944364]
[1772647072133,0.46760608,2147.4,2146.6,3.59744364]
[1772647072336,0.46760608,2147.2,2146.6,1.16460494]
[1772647072573,0.46760608,2147.2,2146.6,2.25261941]
[1772647072772,0.46760608,2147.2,2146.6,2.25262064]
[1772647073142,3.21369087,2147.1,2146.5,2.73549995]
[1772647073838,3.21369087,2147.1,2146.5,2.25264548]
[1772647074969,4.84569682,2147.1,2146.4,1.64856973]
[1772647075166,0.46760608,2147.0,2146.4,1.16571526]
[1772647075869,0.46760608,2146.8,2146.1,0.001]
[1772647076945,0.46760608,2146.8,2146.1,1.16590272]
[1772647077147,1.63218426,2146.7,2146.1,0.001]
[1772647078671,3.21269087,2146.6,2146.1,1.16589727]
[1772647079843,4.37732491,2146.6,2146.1,1.16589727]
[1772647080043,3.21269087,2146.6,2146.1,1.16589727]
[1772647080977,4.37732978,2146.6,2146.1,1.16589727]
[1772647081175,4.84493586,2146.6,2146.1,1.16589727]
[1772647081379,4.84493586,2146.6,2146.1,0.001]
[1772647081575,3.21269087,2146.6,2146.1,0.001]
[1772647082462,0.46760608,2146.5,2146.3,0.001]
[1772647082668,3.21269087,2146.6,2146.3,0.001]
[1772647082876,3.21269087,2146.4,2146.3,0.001]
[1772647083156,0.002,2146.8,2146.3,0.48385447]
[1772647083352,1.63413044,2146.8,2146.3,0.001]
[1772647084961,3.21269087,2146.7,2146.3,0.001]
[1772647086081,3.21269087,2146.7,2146.3,1.16579522]
[1772647086392,1.16653201,2146.8,2146.4,0.48285447]
[1772647086393,0.002,2146.8,2146.4,0.48285447]
[1772647086567,0.002,2147.0,2146.4,0.48285447]
[1772647086771,3.21269087,2146.9,2146.4,0.48285447]
[1772647087288,0.002,2147.0,2146.5,0.48285447]
[1772647088195,0.002,2147.0,2146.7,0.48285447]
[1772647089598,3.21469087,2147.0,2146.5,1.16464672]
[1772647089796,3.21469087,2147.0,2146.5,1.64750119]
[1772647090678,3.21469087,2147.0,2146.6,0.48285447]
[1772647092282,3.21469087,2147.0,2146.7,1.16457818]
[1772647092784,0.46760608,2147.7,2146.8,0.22476531]
[1772647093090,0.46760608,2147.6,2146.8,0.22476531]
[1772647093488,0.46760608,2147.4,2146.7,1.16457818]
[1772647093889,2.54027735,2147.3,2146.8,0.22367242]
[1772647094201,0.46760608,2147.5,2146.7,1.16457818]
[1772647094386,0.46760608,2147.3,2146.7,2.25857818]
[1772647096812,0.002,2147.1,2146.7,2.25857818]
[1772647097500,0.002,2147.1,2146.8,0.23886328]
[1772647097995,0.002,2147.3,2146.8,0.23686328]
[1772647098321,0.002,2147.6,2146.8,0.23686328]
[1772647098815,0.002,2147.6,2147.0,0.23634899]
[1772647099021,0.002,2147.6,2147.1,1.096]
[1772647099585,0.52588387,2147.6,2147.1,1.096]
[1772647101116,0.52588387,2147.6,2147.2,1.164307]
[1772647102018,0.52588387,2147.6,2147.1,2.26032717]
[1772647102019,1.68998069,2147.6,2147.1,2.26032717]
[1772647102323,0.52588387,2147.6,2147.1,1.16432717]
[1772647104827,1.68998963,2147.6,2147.1,1.16432717]
[1772647104997,0.52588387,2147.6,2147.1,1.16432717]
[1772647105198,0.002,2147.6,2147.2,0.30230227]
[1772647106614,0.55823354,2147.5,2146.9,4.65783949]
[1772647106998,0.55823354,2147.5,2146.9,4.95800157]
[1772647107197,0.002,2147.6,2147.0,0.30016208]
[1772647108730,1.72434507,2147.6,2147.0,0.30016208]
[1772647109216,0.56023354,2147.6,2147.1,1.16436123]
[1772647109823,0.55823354,2147.5,2147.0,1.164377]
[1772647110394,0.55823354,2147.5,2147.2,0.001]
[1772647110599,0.55823354,2147.5,2146.8,1.16448523]
[1772647110896,0.55823354,2147.3,2147.0,0.001]
[1772647111345,0.55823354,2147.2,2146.7,2.26757634]
[1772647111658,0.55823354,2147.2,2146.7,0.001]
[1772647113413,0.55823354,2147.1,2146.7,0.001]
[1772647114608,0.55823354,2147.1,2146.5,0.001]
[1772647115616,0.55823354,2146.9,2146.5,0.001]
[1772647117699,1.72272465,2146.9,2146.5,0.001]
[1772647118136,0.55823354,2146.9,2146.5,0.001]
[1772647118432,0.55823354,2147.2,2146.5,0.28569267]
[1772647118604,0.55823354,2147.2,2146.5,0.001]
[1772647119703,1.16436123,2147.1,2146.3,0.001]
[1772647119904,0.55823354,2147.0,2146.3,0.001]
[1772647121219,0.55823354,2147.0,2146.3,0.28393073]
[1772647122115,0.55823354,2146.9,2146.4,1.16474096]
[1772647124124,0.55823354,2146.9,2146.5,0.001]
[1772647124323,0.56023354,2146.9,2146.5,0.001]
[1772647125972,0.002,2146.9,2146.6,0.27600733]
[1772647126134,0.002,2147.6,2146.9,0.55615442]
[1772647126445,0.004,2147.6,2146.9,0.55615442]
[1772647126942,0.004,2147.6,2147.1,0.55615442]
[1772647128239,0.004,2147.6,2147.2,1.164307]
[1772647128613,0.52724826,2147.6,2147.1,1.16432151]
[1772647128839,0.52524826,2147.6,2147.1,1.16232151]
[1772647130445,0.52324826,2147.5,2147.0,4.65753927]
[1772647132161,0.002,2147.8,2147.1,0.56222452]
[1772647132453,0.52324826,2148.2,2147.3,0.56222452]
[1772647132640,0.52324826,2148.2,2147.4,0.56222452]
[1772647135734,1.68701666,2148.2,2147.5,1.72636887]
[1772647137149,0.52324826,2148.2,2147.6,0.56222452]
[1772647137476,0.002,2148.0,2147.6,0.56222452]
[1772647137937,0.002,2148.0,2147.7,1.16403594]
[1772647138332,0.002,2148.0,2147.8,0.56222452]
[1772647140066,0.002,2148.0,2147.9,1.16392755]
[1772647140234,0.52524826,2148.0,2147.4,1.1641724]
[1772647140436,0.52524826,2148.0,2147.3,0.001]
[1772647140966,0.82821647,2148.0,2147.3,1.16525006]
[1772647141134,0.52324826,2147.9,2147.3,0.001]
[1772647141534,0.52524826,2148.0,2147.3,1.7274762]
[1772647142255,1.6891682,2148.0,2147.3,1.7274762]
[1772647142863,0.52324826,2147.9,2147.3,0.001]
[1772647144338,0.52324826,2147.7,2147.3,0.001]
[1772647145072,0.52324826,2147.7,2147.0,0.001]
[1772647146336,1.16409014,2147.6,2147.0,0.001]
[1772647146538,0.52324826,2147.5,2147.0,0.001]
[1772647148550,1.68741208,2147.5,2147.0,0.001]
[1772647150352,1.68741208,2147.5,2147.2,0.001]
[1772647151771,0.52324826,2147.5,2147.2,0.001]
[1772647151975,1.16411874,2147.6,2147.2,0.001]
[1772647152157,1.687367,2147.6,2147.2,0.001]
[1772647152959,0.52324826,2147.5,2147.2,0.001]
[1772647154479,0.52324826,2147.4,2147.2,0.001]
[1772647155048,1.16418436,2147.5,2147.2,0.001]
[1772647155049,1.68743262,2147.5,2147.2,0.001]
[1772647155452,0.52324826,2147.4,2147.2,0.001]
[1772647155650,0.52324826,2147.4,2147.0,0.001]
[1772647155851,0.52324826,2147.4,2146.8,0.001]
[1772647156580,0.52324826,2147.2,2146.8,0.001]
[1772647159059,1.68759691,2147.2,2146.8,0.001]
[1772647160279,0.52324826,2147.2,2146.8,0.55445481]
[1772647160481,0.51498592,2147.4,2146.8,0.55445481]
[1772647160849,0.51498592,2147.4,2146.8,0.001]
[1772647161087,0.51498592,2147.2,2146.8,0.001]
[1772647162187,0.51498592,2147.2,2146.5,0.001]
[1772647162798,0.51498592,2147.0,2146.5,0.001]
[1772647163559,0.51498592,2146.8,2146.5,0.001]
[1772647164262,0.51498592,2146.8,2146.7,0.001]
[1772647164497,0.51498592,2146.8,2146.5,0.001]
[1772647164659,0.002,2147.0,2146.5,0.55445481]
[1772647165700,0.002,2147.0,2146.6,1.16463244]
[1772647166592,0.002,2147.0,2146.6,1.68360892]
[1772647168061,0.51952096,2147.0,2146.6,1.16463244]
[1772647168694,0.51952096,2147.0,2146.5,1.16564511]
[1772647170389,1.68393696,2147.0,2146.5,1.68462159]
[1772647170698,0.002,2147.0,2146.6,0.51897648]
[1772647171503,0.51952096,2147.0,2146.5,1.16564511]
[1772647172076,0.51952096,2147.0,2146.5,1.68462159]
[1772647172792,0.002,2147.0,2146.6,0.51897648]
[1772647173889,0.002,2147.2,2146.6,0.51897648]
[1772647174295,0.002,2147.2,2146.8,0.51897648]
[1772647174514,0.002,2147.2,2146.7,1.16457818]
[1772647174876,0.002,2147.2,2146.7,1.68355466]
[1772647175080,0.51952096,2147.2,2146.5,0.001]
[1772647175297,0.51952096,2147.2,2146.5,1.16567552]
[1772647175475,0.51752096,2147.0,2146.5,1.16567552]
[1772647175877,1.204,2147.1,2146.6,0.51897648]
[1772647176773,1.204,2147.1,2146.7,1.16457818]
[1772647177077,2.36836742,2147.1,2146.8,0.001]
[1772647177506,0.002,2147.0,2146.8,0.001]
[1772647180308,0.51952096,2147.0,2146.8,0.001]
[1772647181006,0.51952096,2147.0,2146.5,0.001]
[1772647181536,0.51752096,2146.9,2146.5,0.001]
[1772647183283,0.51752096,2146.8,2146.5,0.001]
[1772647185411,1.16457818,2146.7,2146.5,0.001]
[1772647187116,0.51752096,2146.6,2146.5,0.001]
[1772647187318,1.6821534,2146.6,2146.5,0.001]
[1772647188815,0.51752096,2146.6,2146.5,0.001]
[1772647189046,1.16459843,2146.7,2146.5,0.001]
[1772647190107,0.52169967,2146.6,2146.3,0.001]
[1772647192789,1.68637623,2146.6,2146.3,0.001]
[1772647192989,1.68635882,2146.6,2146.3,0.001]
[1772647193620,1.16465915,2146.6,2146.3,0.001]
[1772647193799,1.68635882,2146.6,2146.3,0.001]
[1772647194916,0.52169967,2146.5,2146.3,0.001]
[1772647195698,2.38160624,2146.7,2146.3,0.52163101]
[1772647196222,2.90330591,2146.7,2146.3,0.52163101]
[1772647197219,2.90330591,2146.7,2146.2,0.52163101]
[1772647197423,0.52169967,2146.6,2146.2,0.52163101]
[1772647198797,0.52169967,2146.6,2146.2,0.37053768]
[1772647199116,0.52169967,2146.4,2145.9,0.52063101]
[1772647199494,0.52169967,2146.4,2146.0,0.52063101]
[1772647200220,1.16468669,2146.5,2146.0,0.52063101]
[1772647200717,0.52169967,2146.4,2145.8,1.6856529]
[1772647201128,0.52169967,2146.2,2145.6,1.85453867]
[1772647201300,1.223,2146.3,2145.7,0.52063101]
[1772647201829,10.23409875,2146.8,2145.8,0.11299019]
[1772647202128,1.223,2146.8,2146.5,0.001]
[1772647202529,2.38753,2146.8,2146.5,0.001]
[1772647202822,0.52369967,2146.7,2146.3,0.001]
[1772647203119,0.52169967,2146.5,2146.0,0.001]
[1772647203311,0.52169967,2146.3,2146.0,0.001]
[1772647204414,1.225,2146.4,2146.0,0.001]
[1772647204415,1.68633211,2146.6,2146.0,0.11962295]
[1772647204609,0.52169967,2146.5,2146.0,0.11962295]
[1772647205326,0.52169967,2146.5,2145.7,4.66043083]
[1772647205513,0.5395315,2146.6,2145.7,4.66043083]
[1772647205695,1.16661711,2146.7,2145.7,4.66043083]
[1772647206126,0.5395315,2146.6,2145.7,4.66043083]
[1772647206322,0.5395315,2146.6,2145.8,0.01250602]
[1772647206523,1.16661711,2146.7,2145.8,0.01250602]
[1772647206524,1.70612584,2146.7,2145.8,0.01250602]
[1772647206895,0.5395315,2146.6,2145.8,0.01250602]
[1772647207302,1.70612864,2146.7,2146.0,0.01041734]
[1772647207700,0.002,2146.7,2146.0,0.01041734]
[1772647207917,0.5395315,2146.6,2146.0,0.01041734]
[1772647208736,0.002,2146.7,2146.0,0.01041734]
[1772647209118,1.16658048,2146.7,2146.0,0.01041734]
[1772647209327,0.5395315,2146.6,2146.1,1.17239738]
[1772647209930,0.5395315,2146.6,2145.7,0.00749361]
[1772647210153,0.5395315,2146.6,2145.8,0.00749361]
[1772647210645,0.5395315,2146.6,2145.6,0.1687395]
[1772647210827,0.5395315,2146.4,2145.6,1.33994178]
[1772647211017,0.5395315,2146.4,2145.7,0.00603466]
[1772647211342,1.70431275,2146.4,2145.7,0.00603466]
[1772647211844,0.5395315,2146.4,2145.7,0.00603466]
[1772647212047,6.87648896,2146.6,2145.7,0.00603466]
[1772647212048,0.5395315,2146.6,2145.7,0.00603466]
[1772647212625,0.5395315,2146.4,2145.3,0.00311569]
[1772647212831,0.5395315,2146.1,2145.2,0.01668536]
[1772647213146,0.5395315,2146.1,2145.2,1.18207277]
[1772647213318,0.5395315,2145.9,2145.2,1.18207277]
[1772647213512,0.5395315,2145.9,2145.2,1.18805384]
[1772647213713,3.31595641,2145.8,2145.2,0.02266643]
[1772647213924,0.5395315,2145.8,2145.2,1.18805056]
[1772647215255,1.70463229,2145.8,2145.6,0.001]
[1772647215545,0.5395315,2145.8,2145.6,0.001]
[1772647216917,1.16685993,2146.2,2145.7,0.00160789]
[1772647217240,0.002,2146.2,2145.7,0.00160789]
[1772647221145,0.002,2146.2,2145.6,0.001]
[1772647221352,0.002,2146.2,2145.6,1.113]
[1772647221531,0.002,2146.2,2145.6,0.001]
[1772647222238,0.002,2146.2,2145.6,1.16617524]
[1772647222614,0.002,2146.2,2145.6,2.27817524]
[1772647226751,0.002,2147.5,2146.6,2.18812293]
[1772647227068,1e-08,2147.7,2146.8,0.52724604]
[1772647227350,0.002,2147.9,2146.8,0.59278204]
[1772647227562,0.50721143,2147.8,2147.0,2.74927326]
[1772647227862,0.50721143,2147.8,2147.0,0.52724604]
[1772647228069,0.50721143,2147.8,2147.1,1.112]
[1772647228361,0.50721143,2147.8,2147.2,1.164307]
[1772647228574,1.67120156,2147.8,2147.2,1.164307]
[1772647228741,1.67120156,2147.8,2147.1,2.80357323]
[1772647229238,1.67120156,2147.8,2147.1,1.69157323]
[1772647229439,0.50721143,2147.7,2147.1,1.16432719]
[1772647229650,0.50721143,2147.7,2147.1,2.27632719]
[1772647230957,1.67314196,2147.9,2147.2,0.52724604]
[1772647231268,1.6731432,2147.9,2147.2,0.52724604]
[1772647231833,0.50721143,2147.8,2147.0,1.16438437]
[1772647232042,0.50721143,2147.8,2147.0,2.27638437]
[1772647232931,0.50721143,2147.6,2146.8,1.69173018]
[1772647233131,0.50721143,2147.6,2146.8,2.80373018]
[1772647233330,0.50721143,2147.6,2146.8,1.16448414]
[1772647234361,0.50721143,2147.6,2146.6,2.71536897]
[1772647234362,0.50721143,2147.6,2146.4,1.691987]
[1772647234532,0.50721143,2147.6,2146.4,2.803987]
[1772647234931,0.50721143,2147.4,2146.4,2.803987]
[1772647235462,0.50721143,2147.4,2146.5,1.112]
[1772647235657,0.50721143,2147.4,2146.3,1.18105231]
[1772647235960,0.50721143,2147.0,2145.8,0.001]
[1772647236161,0.50721143,2146.8,2145.8,0.001]
[1772647236358,0.50721143,2146.8,2145.8,1.69329136]
[1772647236558,0.50721143,2146.8,2145.8,1.16604532]
[1772647237045,0.50721143,2146.6,2145.8,0.001]
[1772647239163,0.50721143,2146.4,2145.8,0.001]
[1772647239342,0.50488282,2146.4,2145.8,0.001]
[1772647240947,0.50488282,2146.4,2145.6,0.001]
[1772647241142,0.50721143,2146.2,2145.6,0.001]
[1772647241588,0.50721143,2146.2,2145.3,0.001]
[1772647242562,0.50721143,2146.1,2145.3,0.001]
[1772647243367,1.67216949,2146.0,2145.3,0.001]
[1772647243562,0.50721143,2145.9,2145.3,0.001]
[1772647245654,1.16506664,2145.8,2145.3,0.001]
[1772647246674,1.6722625,2145.9,2145.3,0.001]
[1772647247788,5.16653782,2146.3,2145.4,0.52724604]
[1772647248075,0.50721143,2146.1,2145.4,0.52724604]
[1772647248893,0.50721143,2146.1,2145.3,0.001]
[1772647249059,0.50721143,2146.1,2145.3,0.53801698]
[1772647250176,1.6871165,2146.0,2145.3,1.70334354]
[1772647252270,1.6871165,2146.0,2145.3,1.70335098]
[1772647252955,1.6871165,2146.0,2145.5,0.001]